Cogmind - Beta 17.1 @@@ ROGUE MODE // 2026.09.13 @ 21:56:00 Player: UnderDoug Result: Destroyed self with Rocket Launcher Performance ------------- Evolutions (1) 500 Regions Visited (3) 600 Robots Destroyed (34) 170 Value Destroyed (963) 963 Prototype IDs (0) 0 Alien Tech Used (0) 0 Bonus (0) 0 TOTAL SCORE: 2233 Bonus ------- None Cogmind --------- Core Integrity 0/400 Matter 273/500 Energy 85/100 System Corruption 0% Temperature Cool (0) Movement Treading (160) Location -9/Materials Parts ------- > --- POWER (1) -------- (None) > --- PROPULSION (3) --- Light Treads Light Treads > --- UTILITY (3) ------ Medium Storage Unit High-capacity Matter Pod Weapon Shielding > --- WEAPON (2) ------- Rocket Launcher Mining Claw > --- INVENTORY (10) --- Light Armor Plating Light Assault Rifle Light Assault Rifle Datajack Mining Laser Peak State ------------ > --- POWER ------------ Ion Engine > --- PROPULSION ------- Aluminum Leg Aluminum Leg > --- UTILITY ---------- Medium Storage Unit Seismic Detector > --- WEAPON ----------- Bore Cannon Mining Claw > --- INVENTORY -------- Light Ion Engine Aluminum Leg Aluminum Leg High-capacity Matter Pod Light Assault Rifle Light Assault Rifle Grenade Launcher Grenade Launcher Datajack Mining Laser [Rating: 12] Favorites ----------- Power Light Ion Engine Engine Light Ion Engine Power Core Light Nuclear Core Propulsion Aluminum Leg Treads Light Treads Leg Aluminum Leg Utility Medium Storage Unit Device Seismic Detector Storage Medium Storage Unit Protection Weapon Shielding Weapon Mining Claw Energy Gun Medium Laser Ballistic Gun Light Assault Rifle Ballistic Cannon Light Cannon Launcher Grenade Launcher Special Weapon Mining Laser Slashing Weapon Mining Claw Build | -11 -10 -10 -9 ------- Run | Yrd Mat Min Mat Slots Evolved 2 | . . . 2 Power . | . . . . Propulsion 1 | . . . 1 Utility 1 | . . . 1 Weapon . | . . . . Parts Attached 40 | 7 17 6 10 Power 8 | 1 3 2 2 Engine 7 | 1 3 2 1 Core 1 | . . . 1 Reactor . | . . . . Propulsion 15 | 2 7 1 5 Treads 4 | . 2 . 2 Leg 11 | 2 5 1 3 Wheel . | . . . . Hover . | . . . . Flight . | . . . . Utility 7 | 2 3 . 2 Device 3 | 1 2 . . Storage 3 | 1 1 . 1 Processor . | . . . . Hackware . | . . . . Protection 1 | . . . 1 Artifact . | . . . . Weapon 10 | 2 4 3 1 Energy Gun 2 | 2 . . . Energy Cannon . | . . . . Ballistic Gun 1 | . 1 . . Ballistic Cannon 2 | . 1 1 . Launcher 3 | . . 2 1 Special Weapon 1 | . 1 . . Impact Weapon . | . . . . Slashing Weapon 1 | . 1 . . Piercing Weapon . | . . . . Special Melee Weapon . | . . . . Unidentified Prototypes . | . . . . Parts Lost 18 | . 3 1 14 Power 5 | . 1 1 3 Propulsion 7 | . . . 7 Utility 2 | . 1 . 1 Weapon 4 | . 1 . 3 Highest Loss Streak 7 | . 3 1 7 To Critical Strikes . | . . . . Average Backups 9 | 5 9 10 7 Power . | . 1 1 . Propulsion 2 | 3 2 2 . Utility . | . . 1 . Weapon 4 | 1 4 5 4 Tool/Special . | . . . . Unused Backups 10 | . 6 1 3 Power 1 | . 1 . . Propulsion 4 | . 4 . . Utility 3 | . 1 1 1 Weapon 1 | . . . 1 Tool/Special 1 | . . . 1 Average Slot Usage (%) 97 | . 99 99 77 Engine 12 | . 13 13 6 Treads 3 | . 4 . 6 Leg 24 | . 23 28 19 Device 12 | . 13 14 2 Storage 14 | . 14 14 17 Energy Gun 3 | . 5 . . Ballistic Gun 3 | . 5 . . Ballistic Cannon 7 | . 6 10 3 Launcher 1 | . . 3 5 Slashing Weapon 11 | . 9 14 11 Peak Build Rating 12 | 8 10 12 12 Average Rating 8 | 6 8 8 8 On Entrance 7 | . 8 8 12 Avg Prop Armor Cover (%) 7 | . 8 . 7 Naked Turns . | . . . . Heaviest Build 27 | 13 21 27 27 Greatest Support 40 | 20 40 20 40 Greatest Overweight (x) 8 | 3 1 1 8 Average Overweight (x) . | . . . . Largest Inventory Capacity 10 | 8 10 10 10 Average Capacity 9 | 7 9 10 10 Most Carried 10 | 8 10 10 10 Average Carried 9 | 6 9 10 7 Final Capacity 10 | 8 10 10 10 Final Carried 10 | 8 10 10 5 Class Distribution -------------------- 97% | Mutant Dominant Class ---------------- Mutant | -10/Materials Mutant | -10/Mines Mutant | -9/Materials Resources | -11 -10 -10 -9 ----------- Run | Yrd Mat Min Mat Matter Collected 1333 | 270 445 409 209 Remotely . | . . . . Salvage Created 854 | 90 402 144 218 Parts 69 | 7 33 11 18 Haulers Intercepted . | . . . . Recyclers Shooed 2 | . 1 . 1 Parts Field Recycled . | . . . . Retrieved Matter . | . . . . Parts Self-Destructed . | . . . . Prevented . | . . . . Parts Restored . | . . . . Kills | -11 -10 -10 -9 ------- Run | Yrd Mat Min Mat Combat Hostiles Destroyed 29 | . 11 10 8 Melee 3 | . 2 1 . Guns 7 | . 7 . . Cannons 4 | . 2 . 2 AOE 15 | . . 9 6 Classes Destroyed 10 | 2 4 2 2 Worker 1 | . . 1 . Builder 1 | . . . 1 Tunneler 2 | 2 . . . Recycler 1 | 1 . . . Operator 1 | . 1 . . Watcher 2 | . 2 . . Swarmer 6 | . 3 3 . Grunt 16 | . 8 4 4 Sentry 4 | . . . 4 Assembled 3 | . . 3 . Best Kill Streak 4 | 2 4 4 3 Combat Bots Only 4 | . 4 3 2 Max Kills in Single Turn 2 | 1 2 2 1 Gunslinging 1 | . 1 . . Exploded 2 | . . 2 1 Melee 1 | . 1 1 . Uniques/NPCs Destroyed . | . . . . Combat | -11 -10 -10 -9 -------- Run | Yrd Mat Min Mat Hostile Shots Fired 218 | . 68 29 121 Missed 61 | . 16 8 37 Hits 157 | . 52 21 84 Projectile 157 | . 52 21 84 AOE 1 | . . . 1 Critical Strikes 2 | . . 1 1 Part Disruptions 1 | . 1 . . Damage Taken 2287 | . 576 304 1407 Core 506 | . 85 10 411 Absorbed by Shields . | . . . . Redirected to Shielding 30 | . . . 30 Core Remaining (%) 81 | 100 . 62 . Volleys Fired 93 | 5 45 17 26 Largest 2 | 2 2 1 1 Hottest 100 | 100 100 30 48 Shots Fired 121 | 10 68 17 26 Gun 65 | 10 55 . . Cannon 20 | . 11 2 7 Launcher 34 | . . 15 19 Special 2 | . 2 . . Kinetic 33 | . 24 2 7 Thermal 54 | 10 44 . . Explosive 34 | . . 15 19 Electromagnetic . | . . . . Robot Hit Streak 12 | 7 8 11 12 Robot Miss Streak 3 | 1 3 1 3 Penetration Max 1 | . . . 1 Secondary Targets 1 | . 1 . . Max Gunslinging Chain 1 | . 1 . . Shots Hit Robots 83 | 8 39 18 18 Core Hits 63 | 4 22 15 22 Critical Kills 3 | . . . 3 Critical Parts Destroyed 1 | . . . 1 Critical Strikes 8 | 1 2 1 4 Burn 3 | 1 2 . . Destroy 4 | . . . 4 Blast 1 | . . 1 . Melee Attacks 15 | . 7 8 . Impact . | . . . . Slashing 15 | . 7 8 . Piercing . | . . . . Sneak Attacks 2 | . . 2 . Combat Hostiles . | . . . . Follow-up Attacks . | . . . . Damage Inflicted 2178 | 112 574 797 695 Guns 465 | 112 353 . . Cannons 292 | . 124 20 148 Explosions 1168 | . . 621 547 Melee 253 | . 97 156 . Ramming . | . . . . Kinetic 318 | . 150 20 148 Thermal 439 | 112 327 . . Explosive 1168 | . . 621 547 Electromagnetic . | . . . . Impact . | . . . . Slashing 253 | . 97 156 . Piercing . | . . . . Highest Corruption . | . . . . Average Corruption . | . . . . Corruption Purged . | . . . . Corruption Blocked . | . . . . Overload Shots . | . . . . Overflow Damage 27 | . . 23 4 Projectiles 4 | . . . 4 Explosions 15 | . . 15 . Melee 8 | . . 8 . Knockbacks 2 | . 1 . 1 Impact . | . . . . Kinetic 2 | . 1 . 1 Secondary . | . . . . Self-Inflicted Damage 179 | . . 34 145 Shots 9 | . . 3 6 Rammed . | . . . . Targets Rammed . | . . . . Kicked . | . . . . Crushed . | . . . . Highest Temperature 362 | 156 362 17 67 Average Temperature 96 | 68 119 6 22 Received Heat Transfer 774 | . 171 159 444 Effects 2 | . 2 . . Interference 1 | . 1 . . Short Circuit 1 | . 1 . . Siege Activations . | . . . . Martial Activations . | . . . . Shielding Activations . | . . . . Robots Disrupted . | . . . . Combat Hostiles . | . . . . Robots Corrupted . | . . . . Combat Hostiles . | . . . . Parts Fried . | . . . . Impact Corruptions . | . . . . Robots Melted . | . . . . Combat Hostiles . | . . . . Parts Melted 1 | . 1 . . Heat Transferred 1517 | 407 1110 . . Parts Sabotaged . | . . . . Parts Stolen . | . . . . Parts Stripped . | . . . . Power Chain Reactions . | . . . . Alert | -11 -10 -10 -9 ------- Run | Yrd Mat Min Mat Maximum Alert Level . | . . . . Low Security (%) 100 | 100 100 100 100 Level 1 . | . . . . Level 2 . | . . . . Level 3 . | . . . . Level 4 . | . . . . Level 5 . | . . . . High Security . | . . . . Max Security . | . . . . Peak Influence 136 | 5 74 113 136 Initial 3 | . . . 3 Average 29 | . 18 44 51 Influence Increases 1041 | 15 378 309 339 Destroy 0b10 Robot/C 520 | . 220 140 160 Destroy 0b10 Robot/NC 40 | 15 15 5 5 Destroy Leader 134 | . 54 30 50 Successful Hack 26 | . 26 . . Disable Machine 60 | . . 30 30 Destroy Structure 171 | . 3 74 94 Lose Combat Pursuer 90 | . 60 30 . Influence Decreases 909 | 15 378 298 218 Entered New Map 8 | . . . 8 Time Decay 772 | 15 358 288 111 Lost Part 129 | . 20 10 99 Squads Dispatched 2 | . 2 . . Investigation . | . . . . Extermination . | . . . . Reinforcement 2 | . 2 . . Assault . | . . . . Garrison . | . . . . Intercept . | . . . . Searches Triggered . | . . . . Construction Impeded . | . . . . Haulers Reinforced . | . . . . Active Scanning Responses . | . . . . Cargo Convoy Interrupts . | . . . . Stealth | -11 -10 -10 -9 --------- Run | Yrd Mat Min Mat Distress Signals 3 | . 2 . 1 Communications Jammed . | . . . . Distress Signals . | . . . . Times Spotted 51 | . 24 15 12 Peak Tracking Total 6 | . 3 6 5 Tactical Retreats 4 | . 2 2 . Traps | -11 -10 -10 -9 ------- Run | Yrd Mat Min Mat Traps Triggered 1 | . 1 . . Indirectly . | . . . . Trap Hack Attempts . | . . . . Triggered . | . . . . Disarmed . | . . . . Reprogrammed . | . . . . Reused . | . . . . Traps Extracted . | . . . . Installed . | . . . . Triggered . | . . . . Machines | -11 -10 -10 -9 ---------- Run | Yrd Mat Min Mat Machines Disabled 4 | . . 2 2 Max in Single Turn 1 | . . 1 1 Machines Repaired . | . . . . Machines Dismantled . | . . . . Machines Sabotaged . | . . . . Overloaded Fab Kills . | . . . . Hacking | -11 -10 -10 -9 --------- Run | Yrd Mat Min Mat Machines Accessed 8 | . 6 . 2 Terminals 8 | . 6 . 2 Fabricators . | . . . . Repair Stations . | . . . . Recycling Units . | . . . . Scanalyzers . | . . . . Garrison Access . | . . . . Total Hacks 15 | . 12 . 3 Successful 7 | . 5 . 2 Failed 8 | . 7 . 1 Catastrophic . | . . . . Database Lockouts . | . . . . Manual 15 | . 12 . 3 Terminals 15 | . 12 . 3 Fabricators . | . . . . Repair Stations . | . . . . Recycling Units . | . . . . Scanalyzers . | . . . . Garrison Access . | . . . . Terminal Hacks . | . . . . Fabricator Hacks . | . . . . Repair Station Hacks . | . . . . Recycling Unit Hacks . | . . . . Scanalyzer . | . . . . Garrison Access Hacks . | . . . . Unauthorized Hacks 7 | . 5 . 2 Terminals 7 | . 5 . 2 Skim 7 | . 5 . 2 Fabricators . | . . . . Repair Stations . | . . . . Recycling Units . | . . . . Scanalyzers . | . . . . Garrison Access . | . . . . Data Cores Recovered . | . . . . Used . | . . . . Hacking Detections 6 | . 6 . . Full Trace Events . | . . . . Feedback Events . | . . . . Feedback Blocked . | . . . . Robot Schematics Acquired . | . . . . Robots Built . | . . . . Authchips . | . . . . Time . | . . . . Total Robot Build Rating . | . . . . Part Schematics Acquired . | . . . . Parts Built . | . . . . Authchips . | . . . . Time . | . . . . Total Part Build Rating . | . . . . Part Studies Acquired . | . . . . Parts Repaired . | . . . . Time . | . . . . Parts Recycled . | . . . . Recycled Matter . | . . . . Retrieved Matter . | . . . . Retrieved Components . | . . . . Parts Scanalyzed . | . . . . Part Schematics Acquired . | . . . . Parts Damaged . | . . . . Bothacking | -11 -10 -10 -9 ------------ Run | Yrd Mat Min Mat Used RIF Installer . | . . . . Robots Hacked . | . . . . Non-combat . | . . . . Combat . | . . . . Robot Hacks Applied . | . . . . Relay Couplers Released . | . . . . Fabnet Peak Effective % . | . . . . Robots Rewired . | . . . . Allies Hacked . | . . . . Hacks Repelled . | . . . . Allies | -11 -10 -10 -9 -------- Run | Yrd Mat Min Mat Total Allies . | . . . . Largest Group . | . . . . Highest-Rated Group . | . . . . Highest-Rated Ally . | . . . . Total Orders . | . . . . Ally Attacks . | . . . . Total Damage . | . . . . Kills . | . . . . Allies Corrupted . | . . . . Allies Melted . | . . . . Intel | -11 -10 -10 -9 ------- Run | Yrd Mat Min Mat Active Infowar (turns) 2669 | 61 1607 927 74 Terrain 192 | . 192 . . Seismic 2477 | 61 1415 927 74 Robot Analysis Total . | . . . . Derelict Logs Recovered 1 | . . 1 . Drone Launches . | . . . . Drone Recoveries . | . . . . Exploration | -11 -10 -10 -9 ------------- Run | Yrd Mat Min Mat Turns Passed 2994 | 124 1621 927 322 Spaces Moved 1579 | 74 789 574 142 Core 19 | 12 . . 7 Treads 203 | . 157 . 46 Legs 1357 | 62 632 574 89 Wheels . | . . . . Hover . | . . . . Flight . | . . . . Fastest Speed 50 | 50 120 120 120 Average Speed 136 | 122 130 142 156 Slowest Speed 450 | 200 190 190 450 Overloaded Moves . | . . . . Propulsion Burnouts . | . . . . Robots Hopped . | . . . . Potential Cave-ins . | . . . . Cave-ins Triggered . | . . . . Exploration Rate (%) 53 | 4 96 93 19 Regions Visited 3 Branch Regions 1 Pre-discovered Areas . | . . . . Known Exits Taken 1 | . . 1 . Unknown Exits Taken 2 | 1 1 . . Scrap Searched 1 | . . 1 . Spaces Dug 2 | . 2 . . Terrain Destroyed 191 | . 2 90 99 Melee . | . . . . Projectile 6 | . 2 . 4 AOE 185 | . . 90 95 Terrain Rammed . | . . . . Walls Destroyed . | . . . . Machines Disabled . | . . . . Actions | -11 -10 -10 -9 --------- Run | Yrd Mat Min Mat Total 2256 | 93 1299 649 215 Wait 464 | . 405 31 28 Move 1576 | 73 788 573 142 Hop . | . . . . Pick Up 31 | 8 17 2 4 Fast Attach 14 | 7 1 1 5 Attach 12 | . 3 . 9 Detach . | . . . . Swap 30 | . 15 14 1 Drop 21 | . 18 3 . Fire 93 | 5 45 17 26 Melee 15 | . 7 8 . Ram . | . . . . Kick . | . . . . Crush . | . . . . Escape Stasis . | . . . . Rewire . | . . . . Trap . | . . . . Miscellaneous . | . . . . Route ------- -11/Scrapyard -10/Materials (discovered 5 exits: *Mat x3 / [*Min] / *Sub) -10/Mines (discovered 2 exits: *Mat x2) -9/Materials (discovered 2 exits: *Min / Sto) History --------- Turn | Location | Event 27 | -11/Scrapyard | Discovered new exit (range 16) 125 | -11/Scrapyard | Entered Materials 274 | -10/Materials | Lost 3 parts (1p1u1w) 320 | -10/Materials | Build established: Mutant 414 | -10/Materials | Discovered new exit (range 8) 1036 | -10/Materials | Discovered new exit (range 7) 1159 | -10/Materials | Learned Storage stockpile data 1211 | -10/Materials | Learned 4 Subcaves zone layouts 1253 | -10/Materials | Identified exit to Subcaves 1287 | -10/Materials | Learned 2 Mines zone layouts 1380 | -10/Materials | Learned 4 Recycling zone layouts 1417 | -10/Materials | Discovered new exit (range 3) 1643 | -10/Materials | Discovered new exit (range 7) 1746 | -10/Materials | Entered Mines 1747 | -10/Mines | Identified exit to Materials 2077 | -10/Mines | Assembled infested the area 2157 | -10/Mines | Discovered exit to Materials (range 7) 2473 | -10/Mines | A weapon hastily lodged in a ceiling crevice suddenly fell to the ground 2673 | -10/Mines | Entered Materials 2673 | -9/Materials | Evolved 2 slots: Propulsion x1, Utility x1 2674 | -9/Materials | Identified exit to Mines 2674 | -9/Materials | Identified exit to Storage 2786 | -9/Materials | Core integrity fell below 50% 2803 | -9/Materials | Core integrity fell below 20% 2819 | -9/Materials | Lost 7 parts (2p3n1u1w) 2924 | -9/Materials | Lost 3 parts (1p2n) 2995 | -9/Materials | Destroyed self with Rocket Launcher Last Messages --------------- 02920_ U-05 Engineer builds a Wall. 02920_ U-05 Engineer lays Concrete. 02924_ U-05 Engineer builds a Wall. 02924_ U-05 Engineer lays Concrete. 02929_ U-05 Engineer builds a Wall. 02929_ U-05 Engineer lays Concrete. 02930_ Acquired 34 matter. 02932_ U-05 Engineer builds a Wall. 02933_ Acquired Lgt. Armor Plating. 02936_ U-05 Engineer lays Concrete. 02937_ U-05 Engineer builds a Wall. 02938_ U-05 Engineer lays Concrete. 02938_ U-05 Engineer builds a Wall. 02939_ U-05 Engineer lays Concrete. 02942_ U-05 Engineer builds a Wall. 02943_ U-05 Engineer lays Concrete. 02974_ Aluminum Leg destroyed. 02990_ G-34 Mercenary destroyed. 02992_ Grenade Launcher destroyed. 02995_ G-47 Trooper destroyed. Map ----- +----------------------------------------------------+ | #### " !! #+### ## # | | ???# "" # # # | | ??# "T # % ## # | | ! # "" # ##+#### | | + %==! + #[# #? | | "" # !* # # # # #? | | ???# ""##+## # ### # #? | | ???# ""* == # # ### ###? | | ???# "" [! # # ## ##### #### | | ???# "" # ##?###?#### ## # | | ???# "" # ######## # | | ??# " # ## | | ! " # ## # | | % """""""# ## == | | == " # ### ## =| # | | ### ######?? ?# = ### | | ??######???????# ?# ### ###? | | ???????????????# #####+##### #??? | | ???????????????# #??? | | ?????????????### #######??? | | ?????????????# #????????? | | ?????????????# #????????? | | ?????????????# ##### #????????? | | ?????????????## ?????#+########?? | | ??????????????#???#### #?? | | ?????????????## ### @ """#?? | | ?????????????# """#?? | | ?????????????# """#?? | | ?????????????# % #?? | | ????????????# Y """#?? | | ????????????## % """#?? | | ?????????????# = """#?? | | ?????????????# = #?? | | ?????????????## g## ######?? | | ??????????????## ? ???????? | | ???????????????# ?? """ ???????? | | ???????????????# ?# """ ???????? | | ???????????????# ??#???" ???????? | | ???????????????#??????? ???????? | | ???????????????????????? ???????? | | ????????????????????????#???????? | | ????????????????????????????????? | | ????????????????????????????????? | | ????????????????????????????????? | | ????????????????????????????????? | | ????????????????????????????????? | | ????????????????????????????????? | | ????????????????????????????????? | | ????????????????????????????????? | | ????????????????????????????????? | +----------------------------------------------------+ Best States ------------- Heat Dissipation 28 Energy Generation 14 Energy Capacity 250 Matter Stores 435 Matter Capacity 500 Sight Range 16 Terrain Scan Range 16 Terrain Scan Density 10 Weapon Shielding 33 Evasion (%) 55 Recoil Reduction 2 Item Schematics ----------------- None Robot Schematics ------------------ None Fabricated ------------ Nothing Repaired ---------- Nothing Studied --------- None Alien Tech Used ----------------- None Achievements -------------- None Challenges ------------ None Game ------ Seed TowerColdExoskeleton Manual? 0 Play Time 00:22:38 Cumulative 22.4 hours Start 2026.09.13 @ 21:33:11 End 2026.09.13 @ 21:56:00 Sessions 1 Manual Loads 0 Difficulty Rogue Special Mode None Game No. 46 Rogue 46 Adventurer 0 Explorer 0 Win Type - Total 0 Types 0/0/0/0/0/0/0/0/0/0 Lore% 32 Gallery% 18 Achievement% 16 Wizard Run 0 Options --------- Layout 2 ASCII 0 Keyboard 0 Movement Mouse Keybinds 0 Fullscreen 2 Font 24/Smallcaps Map View 50x44 Zoom Use 0% Tactical HUD 1 Map Filters NONE Filters NONE Steam 1 RUN: f613bfbc-ab4c-4453-afa3-f8e802fde3fa